fUSD/lending_fUSD_20260620
["ID","MTS","AMOUNT","RATE_DAILY","PERIOD"]
[425772140,1781887524000,-512.1400797,0.00037922,30]
[425772136,1781887524000,-2711.25211653,0.00037922,120]
[425772142,1781887524000,-314.83757305,0.00037922,120]
[425772143,1781887524000,-771.64914075,0.00037922,120]
[425772141,1781887524000,-280.34029299,0.00037922,120]
[425772165,1781887525000,-711.6811828,0.00037922,30]
[425772170,1781887525000,-353.05073182,0.00037922,120]
[425772169,1781887525000,-1090.27074195,0.00037922,30]
[425772168,1781887525000,-873.78334252,0.00037922,120]
[425772167,1781887525000,-1151.05024716,0.00037922,30]
[425772164,1781887525000,-1338.58106473,0.00037922,120]
[425772166,1781887525000,-61433.23391879,0.00037922,60]
[425772163,1781887525000,-236.08415819,0.00037922,30]
[425772154,1781887525000,-211.91420706,0.00037922,120]
[425772161,1781887525000,-1485.56710567,0.00037922,120]
[425772160,1781887525000,-935.73582307,0.00037922,30]
[425772159,1781887525000,-605.66363514,0.00037922,120]
[425772158,1781887525000,-289.52880704,0.00037922,120]
[425772156,1781887525000,-943.56774109,0.00037922,120]
[425772157,1781887525000,-1415.01216784,0.00037922,30]
[425772155,1781887525000,-232.93504089,0.00037922,30]
[425772162,1781887525000,-227.60070082,0.00037922,120]
[425772171,1781887525000,-900.81608703,0.00037922,120]
[425772172,1781887525000,-20976.97469568,0.00037922,60]
[425772173,1781887525000,-2373.67094336,0.00037922,120]
[425772191,1781887525000,-859.1276601,0.00037922,120]
[425772174,1781887525000,-911.76364988,0.00037922,30]
[425772189,1781887525000,-970.6812197,0.00037922,120]
[425772187,1781887525000,-1234.63101974,0.00037922,120]
[425772188,1781887525000,-1531818.76277116,0.00037922,30]
[425772186,1781887525000,-457.14771415,0.00037922,120]
[425772183,1781887525000,-242.79028429,0.00037922,30]
[425772185,1781887525000,-156.87856552,0.00037922,30]
[425772190,1781887525000,-747.72015092,0.00037922,60]
[425772182,1781887525000,-495.61847318,0.00037922,30]
[425772180,1781887525000,-416.06236824,0.00037922,120]
[425772181,1781887525000,-484.71383575,0.00037922,120]
[425772179,1781887525000,-370.86155001,0.00037922,120]
[425772177,1781887525000,-175.99623642,0.00037922,120]
[425772176,1781887525000,-2201.164179,0.00037922,30]
[425772178,1781887525000,-24278.76218386,0.00037922,120]
[425772175,1781887525000,-980.92635253,0.00037922,120]
[425772184,1781887525000,-202.70972025,0.00037922,120]
[425772203,1781887526000,-4203.99369075,0.00037922,120]
[425772204,1781887526000,-1183.78769229,0.00037922,30]
[425772200,1781887526000,-557.20759276,0.00037922,120]
[425772201,1781887526000,-473.47571921,0.00037922,120]
[425772205,1781887526000,-870.65582397,0.00037922,120]
[425772198,1781887526000,-4750.384373,0.00037922,100]
[425772197,1781887526000,-159.5631902,0.00037922,120]
[425772195,1781887526000,-586.45809441,0.00037922,120]
[425772196,1781887526000,-746.30538841,0.00037922,120]
[425772194,1781887526000,-215.26095793,0.00037922,120]
[425772193,1781887526000,-273.13890588,0.00037922,30]
[425772192,1781887526000,-199.84531681,0.00037922,120]
[425772199,1781887526000,-984209.91671623,0.00037922,120]
[425772206,1781887526000,-492.6801745,0.00037922,120]
[425772202,1781887526000,-319.16780853,0.00037922,30]
[425772207,1781887526000,-623.63545314,0.00037922,120]
[425772221,1781887526000,-438.54686513,0.00037922,30]
[425772222,1781887526000,-852.30476971,0.00037922,49]
[425772219,1781887526000,-221.49781143,0.00037922,120]
[425772220,1781887526000,-870.54273881,0.00037922,30]
[425772218,1781887526000,-174.52962711,0.00037922,30]
[425772217,1781887526000,-491.36184615,0.00037922,30]
[425772216,1781887526000,-203.70340761,0.00037922,120]
[425772208,1781887526000,-853.74489974,0.00037922,120]
[425772214,1781887526000,-176.86682342,0.00037922,30]
[425772211,1781887526000,-283.64646096,0.00037922,120]
[425772213,1781887526000,-476.90309381,0.00037922,30]
[425772212,1781887526000,-22858.50967795,0.00037922,120]
[425772210,1781887526000,-2306.58203325,0.00037922,30]
[425772209,1781887526000,-509.86801892,0.00037922,30]
[425772215,1781887526000,-3004.91359175,0.00037922,30]
[425772238,1781887527000,-2019029.6373482,0.00037922,90]
[425772239,1781887527000,-10748.59792974,0.00037922,60]
[425772237,1781887527000,-1141.75610953,0.00037922,30]
[425772235,1781887527000,-509013.93824945,0.00037922,60]
[425772234,1781887527000,-1486.93239939,0.00037922,30]
[425772233,1781887527000,-488.78484781,0.00037922,120]
[425772230,1781887527000,-706.0772968,0.00037922,30]
[425772229,1781887527000,-943.44032991,0.00037922,120]
[425772227,1781887527000,-100000.0,0.00037922,120]
[425772231,1781887527000,-700.0,0.00037922,120]
[425772240,1781887527000,-39168.12871261,0.00037922,60]
[425772228,1781887527000,-884.76326434,0.00037922,120]
[425772225,1781887527000,-198.33077822,0.00037922,31]
[425772226,1781887527000,-767.10013202,0.00037922,30]
[425772224,1781887527000,-12032.82319883,0.00037922,60]
[425772223,1781887527000,-290.72226083,0.00037922,30]
[425772232,1781887527000,-3744.52803297,0.00037922,30]
[425772241,1781887527000,-540.53022106,0.00037922,120]
[425772236,1781887527000,-420.95193503,0.00037922,30]
[425772242,1781887527000,-658.49013028,0.00037922,30]
[425772243,1781887527000,-168.92946846,0.00037922,120]
[425772258,1781887527000,-463.57053829,0.00037922,60]
[425772257,1781887527000,-67294.82291039,0.00037922,30]
[425772259,1781887527000,-314.50752096,0.00037922,120]
[425772256,1781887527000,-467.27299005,0.00037922,120]
[425772253,1781887527000,-784.26259027,0.00037922,30]
[425772254,1781887527000,-29512.0,0.00037922,30]
[425772252,1781887527000,-275.82898798,0.00037922,30]
[425772255,1781887527000,-703.01070867,0.00037922,30]
[425772248,1781887527000,-2576.17736681,0.00037922,120]
[425772251,1781887527000,-549.0,0.00037922,30]
[425772247,1781887527000,-734.88409067,0.00037922,120]
[425772246,1781887527000,-271.65830815,0.00037922,120]
[425772245,1781887527000,-522.51142257,0.00037922,90]
[425772244,1781887527000,-1178.75336876,0.00037922,120]
[425772249,1781887527000,-7121.73330133,0.00037922,120]
[425772250,1781887527000,-313.15862373,0.00037922,30]
[425772260,1781887527000,-656.55612954,0.00037922,120]
[425772268,1781887528000,-250.0,0.00037922,30]
[425772277,1781887528000,-236.59766784,0.00037922,60]
[425772274,1781887528000,-846.51747548,0.00037922,120]
[425772275,1781887528000,-415.79562076,0.00037922,30]
[425772272,1781887528000,-1582.26136859,0.00037922,120]
[425772273,1781887528000,-2645.9951591,0.00037922,120]
[425772270,1781887528000,-1019.15045173,0.00037922,30]
[425772276,1781887528000,-851.78650153,0.00037922,30]
[425772261,1781887528000,-1018.69646587,0.00037922,120]
[425772269,1781887528000,-1006.37589873,0.00037922,120]
[425772267,1781887528000,-504.52178729,0.00037922,120]
[425772266,1781887528000,-554.26633313,0.00037922,120]
[425772264,1781887528000,-539.46857925,0.00037922,30]
[425772265,1781887528000,-603.50707238,0.00037922,30]
[425772263,1781887528000,-150.94827224,0.00037922,30]
[425772262,1781887528000,-1436.8270951,0.00037922,60]
[425772278,1781887528000,-151.02262056,0.00037922,120]
[425772271,1781887528000,-165.75021998,0.00037922,120]
[425772279,1781887528000,-1244.421711,0.00037922,120]
[425772293,1781887528000,-160.98038405,0.00037922,120]
[425772280,1781887528000,-600.0,0.00037922,120]
[425772281,1781887528000,-6059.39174667,0.00037922,120]
[425772299,1781887528000,-891.57894737,0.00037922,120]
[425772300,1781887528000,-1100.0,0.00037922,120]
[425772298,1781887528000,-2496.42105263,0.00037922,120]
[425772297,1781887528000,-1674.924984,0.00037922,120]
[425772294,1781887528000,-1071.885221,0.00037922,120]
[425772295,1781887528000,-349.062522,0.00037922,120]
[425772292,1781887528000,-160.98038405,0.00037922,120]
[425772290,1781887528000,-160.98038405,0.00037922,120]
[425772296,1781887528000,-1519.51095685,0.00037922,120]
[425772288,1781887528000,-611.442391,0.00037922,120]
[425772291,1781887528000,-160.98038405,0.00037922,120]
[425772283,1781887528000,-883.39,0.00037922,120]
[425772285,1781887528000,-156.0471488,0.00037922,120]
[425772284,1781887528000,-153.0235744,0.00037922,120]
[425772282,1781887528000,-1500.0,0.00037922,120]
[425772286,1781887528000,-159.0707232,0.00037922,120]
[425772287,1781887528000,-162.0942976,0.00037922,120]
[425772289,1781887528000,-415.978,0.00037922,120]
[425772309,1781887529000,-50000.0,0.00037922,52]
[425772304,1781887529000,-50000.0,0.00037922,47]
[425772306,1781887529000,-50000.0,0.00037922,49]
[425772303,1781887529000,-50000.0,0.00037922,46]
[425772305,1781887529000,-50000.0,0.00037922,48]
[425772308,1781887529000,-50000.0,0.00037922,51]
[425772307,1781887529000,-50000.0,0.00037922,50]
[425772302,1781887529000,-50000.0,0.00037922,45]
[425772311,1781887529000,-50000.0,0.00037922,54]
[425772315,1781887529000,-50000.0,0.00037922,58]
[425772312,1781887529000,-50000.0,0.00037922,55]
[425772313,1781887529000,-50000.0,0.00037922,56]
[425772314,1781887529000,-50000.0,0.00037922,57]
[425772316,1781887529000,-50000.0,0.00037922,59]
[425772318,1781887529000,-3703.66163067,0.00037922,120]
[425772317,1781887529000,-50000.0,0.00037922,60]
[425772319,1781887529000,-691.81084597,0.00037922,120]
[425772301,1781887529000,-1285.64,0.00037922,120]
[425772310,1781887529000,-50000.0,0.00037922,53]
[425772320,1781887529000,-10824.21283515,0.00037922,60]
[425772322,1781887578000,-161.0,0.00016438,2]
[425772323,1781887605000,-153.19,0.00016649,2]
[425772324,1781887605000,-260.67531731,0.000168,2]
[425772325,1781887632000,-39.32468269,0.000168,2]
[425772326,1781887686000,-200.0,0.00016357,2]
[425772328,1781887714000,-166.66,0.00022629,30]
[425772329,1781887714000,-593.36,0.00027553,30]
[425772330,1781887714000,-596.31,0.00027553,30]
[425772331,1781887714000,-653.95,0.00027554,30]
[425772332,1781887714000,-405.46,0.00027618,30]
[425772333,1781887714000,-405.46,0.00027708,30]
[425772335,1781887714000,-405.46,0.00027798,30]
[425772327,1781887714000,-166.66,0.00022198,30]
[425772336,1781887714000,-410.1,0.00027889,30]
[425772338,1781887714000,-410.1,0.00027979,30]
[425772337,1781887714000,-405.46,0.00027889,30]
[425772340,1781887714000,-593.36,0.00028035,30]
[425772339,1781887714000,-405.46,0.00027979,30]
[425772341,1781887714000,-596.31,0.00028035,30]
[425772342,1781887714000,-653.95,0.00028036,30]
[425772334,1781887714000,-335.72,0.00027733,120]
[425772357,1781887715000,-171.0,0.00028961,30]
[425772356,1781887715000,-192.0,0.00028961,30]
[425772354,1781887715000,-688.0,0.00028961,30]
[425772355,1781887715000,-971.0,0.00028961,30]
[425772351,1781887715000,-212.0,0.00028961,30]
[425772353,1781887715000,-171.0,0.00028961,30]
[425772352,1781887715000,-248.0,0.00028961,30]
[425772349,1781887715000,-1878.44,0.0002852,30]
[425772347,1781887715000,-545.37,0.00028386,30]
[425772348,1781887715000,-653.95,0.00028518,30]
[425772346,1781887715000,-152.0,0.00028145,30]
[425772344,1781887715000,-405.46,0.00028069,30]
[425772345,1781887715000,-545.37,0.0002808,30]
[425772343,1781887715000,-410.1,0.00028069,30]
[425772359,1781887715000,-174.0,0.00028961,30]
[425772350,1781887715000,-1111.12,0.000288,30]
[425772358,1781887715000,-151.0,0.00028961,30]
[425772362,1781887715000,-151.0,0.00028962,30]
[425772378,1781887715000,-195.0,0.00029961,30]
[425772360,1781887715000,-195.0,0.00028961,30]
[425772376,1781887715000,-151.0,0.00029961,30]
[425772377,1781887715000,-174.0,0.00029961,30]
[425772374,1781887715000,-192.0,0.00029961,30]
[425772375,1781887715000,-171.0,0.00029961,30]
[425772373,1781887715000,-971.0,0.00029961,30]
[425772369,1781887715000,-212.0,0.00029961,30]
[425772371,1781887715000,-171.0,0.00029961,30]
[425772372,1781887715000,-688.0,0.00029961,30]
[425772368,1781887715000,-500.0,0.00029799,30]
[425772366,1781887715000,-209.83576819,0.00029166,30]
[425772367,1781887715000,-500.0,0.00029799,30]
[425772365,1781887715000,-500.0,0.00029166,30]
[425772364,1781887715000,-654.04,0.00029,30]
[425772363,1781887715000,-1878.46,0.00029,30]
[425772361,1781887715000,-558.0,0.00028961,30]
[425772370,1781887715000,-248.0,0.00029961,30]
[425772389,1781887716000,-500.0,0.00030129,30]
[425772394,1781887716000,-1000.0,0.00030137,120]
[425772392,1781887716000,-500.0,0.00030129,30]
[425772393,1781887716000,-279.21341185,0.00030129,30]
[425772391,1781887716000,-500.0,0.00030129,30]
[425772388,1781887716000,-500.0,0.00030129,30]
[425772390,1781887716000,-500.0,0.00030129,30]
[425772387,1781887716000,-500.0,0.00030129,30]
[425772395,1781887716000,-1111.12,0.000302,30]
[425772386,1781887716000,-500.0,0.00030129,30]
[425772384,1781887716000,-500.0,0.00030129,30]
[425772383,1781887716000,-500.0,0.00030129,30]
[425772381,1781887716000,-369.93630998,0.0003,30]
[425772382,1781887716000,-169.29947798,0.0003,30]
[425772380,1781887716000,-151.0,0.00029962,30]
[425772379,1781887716000,-558.0,0.00029961,30]
[425772385,1781887716000,-500.0,0.00030129,30]
[425772397,1781887716000,-1000.0,0.000305,120]
[425772416,1781887716000,-433.0,0.00031598,30]
[425772398,1781887716000,-335.72,0.00030506,120]
[425772396,1781887716000,-152.56,0.00030411,120]
[425772414,1781887716000,-433.01,0.00031294,30]
[425772415,1781887716000,-194.0,0.00031493,120]
[425772412,1781887716000,-159.0,0.00030964,30]
[425772413,1781887716000,-433.01,0.00030989,30]
[425772411,1781887716000,-151.0,0.00030962,30]
[425772409,1781887716000,-195.0,0.00030961,30]
[425772408,1781887716000,-174.0,0.00030961,30]
[425772410,1781887716000,-558.0,0.00030961,30]
[425772407,1781887716000,-151.0,0.00030961,30]
[425772406,1781887716000,-171.0,0.00030961,30]
[425772401,1781887716000,-248.0,0.00030961,30]
[425772402,1781887716000,-171.0,0.00030961,30]
[425772400,1781887716000,-212.0,0.00030961,30]
[425772399,1781887716000,-433.01,0.00030685,30]
[425772403,1781887716000,-688.0,0.00030961,30]
[425772405,1781887716000,-192.0,0.00030961,30]
[425772404,1781887716000,-971.0,0.00030961,30]
[425772427,1781887717000,-174.0,0.00031961,30]
[425772432,1781887717000,-191.8579928,0.00032,120]
[425772431,1781887717000,-159.0,0.00031964,30]
[425772430,1781887717000,-151.0,0.00031962,30]
[425772429,1781887717000,-558.0,0.00031961,30]
[425772428,1781887717000,-195.0,0.00031961,30]
[425772426,1781887717000,-151.0,0.00031961,30]
[425772425,1781887717000,-171.0,0.00031961,30]
[425772433,1781887717000,-194.07998194,0.00032,120]
[425772422,1781887717000,-688.0,0.00031961,30]
[425772423,1781887717000,-971.0,0.00031961,30]
[425772421,1781887717000,-171.0,0.00031961,30]
[425772420,1781887717000,-248.0,0.00031961,30]
[425772419,1781887717000,-212.0,0.00031961,30]
[425772418,1781887717000,-1001.0,0.00031945,120]
[425772417,1781887717000,-433.0,0.00031903,30]
[425772424,1781887717000,-192.0,0.00031961,30]
[425772436,1781887717000,-169.87728653,0.00032,120]
[425772434,1781887717000,-268.86302273,0.00032,120]
[425772452,1781887717000,-150.0,0.000324,30]
[425772435,1781887717000,-170.3844487,0.00032,120]
[425772454,1781887717000,-433.0,0.00032511,30]
[425772453,1781887717000,-150.0,0.000324,30]
[425772450,1781887717000,-150.0,0.000324,30]
[425772451,1781887717000,-290.04233964,0.000324,30]
[425772449,1781887717000,-150.0,0.000324,30]
[425772447,1781887717000,-235.57114901,0.00032234,30]
[425772446,1781887717000,-369.93630998,0.00032222,30]
[425772448,1781887717000,-150.0,0.000324,30]
[425772445,1781887717000,-369.93630998,0.00032222,30]
[425772443,1781887717000,-242.0,0.00032138,30]
[425772441,1781887717000,-170.2621268,0.00032,120]
[425772442,1781887717000,-176.9972594,0.00032,120]
[425772438,1781887717000,-188.93716951,0.00032,120]
[425772440,1781887717000,-189.44218709,0.00032,120]
[425772439,1781887717000,-162.7835713,0.00032,120]
[425772444,1781887717000,-433.0,0.00032207,30]
[425772437,1781887717000,-172.21727301,0.00032,120]
[425772466,1781887718000,-195.0,0.00032961,30]
[425772469,1781887718000,-159.0,0.00032964,30]
[425772467,1781887718000,-558.0,0.00032961,30]
[425772471,1781887718000,-1000.0,0.00032999,30]
[425772470,1781887718000,-1000.0,0.00032999,30]
[425772465,1781887718000,-174.0,0.00032961,30]
[425772468,1781887718000,-151.0,0.00032962,30]
[425772463,1781887718000,-171.0,0.00032961,30]
[425772456,1781887718000,-152.406378,0.00032877,120]
[425772462,1781887718000,-192.0,0.00032961,30]
[425772460,1781887718000,-688.0,0.00032961,30]
[425772459,1781887718000,-171.0,0.00032961,30]
[425772458,1781887718000,-248.0,0.00032961,30]
[425772457,1781887718000,-212.0,0.00032961,30]
[425772455,1781887718000,-150.0,0.00032816,30]
[425772472,1781887718000,-1000.0,0.00032999,30]
[425772464,1781887718000,-151.0,0.00032961,30]
[425772473,1781887718000,-1000.0,0.00032999,30]
[425772461,1781887718000,-971.0,0.00032961,30]
[425772477,1781887718000,-172.21727301,0.00033,120]
[425772474,1781887718000,-191.8579928,0.00033,120]
[425772488,1781887718000,-151.811617,0.00033512,120]
[425772490,1781887718000,-1000.0,0.00033669,30]
[425772489,1781887718000,-1000.0,0.00033669,30]
[425772486,1781887718000,-335.72,0.00033279,120]
[425772487,1781887718000,-170.98842831,0.00033425,30]
[425772485,1781887718000,-155.221746,0.00033219,120]
[425772492,1781887718000,-170.98842831,0.00033729,30]
[425772491,1781887718000,-456072.0,0.0003367,30]
[425772483,1781887718000,-170.98842831,0.0003312,30]
[425772482,1781887718000,-175.82,0.00033057,30]
[425772481,1781887718000,-176.9972594,0.00033,120]
[425772480,1781887718000,-170.2621268,0.00033,120]
[425772479,1781887718000,-162.7835713,0.00033,120]
[425772478,1781887718000,-188.93716951,0.00033,120]
[425772475,1781887718000,-268.86302273,0.00033,120]
[425772476,1781887718000,-170.3844487,0.00033,120]
[425772484,1781887718000,-201.66174539,0.00033123,120]
[425772506,1781887719000,-212.0,0.00033961,30]
[425772504,1781887719000,-1000.0,0.00033911,30]
[425772505,1781887719000,-150.418016,0.0003392,120]
[425772502,1781887719000,-287.07563925,0.000339,90]
[425772503,1781887719000,-1062.3,0.000339,120]
[425772501,1781887719000,-176.9972594,0.000339,120]
[425772497,1781887719000,-268.86302273,0.000339,120]
[425772499,1781887719000,-162.7835713,0.000339,120]
[425772498,1781887719000,-172.21727301,0.000339,120]
[425772496,1781887719000,-1918.17,0.00033795,120]
[425772494,1781887719000,-250.0,0.00033753,32]
[425772495,1781887719000,-250.0,0.00033753,32]
[425772493,1781887719000,-250.0,0.00033753,32]
[425772507,1781887719000,-248.0,0.00033961,30]
[425772500,1781887719000,-170.2621268,0.000339,120]
[425772508,1781887719000,-171.0,0.00033961,30]
[425772515,1781887719000,-195.0,0.00033961,30]
[425772509,1781887719000,-688.0,0.00033961,30]
[425772526,1781887719000,-800.0,0.00034301,120]
[425772525,1781887719000,-800.0,0.00034246,120]
[425772524,1781887719000,-152.077664,0.00034185,120]
[425772521,1781887719000,-194.62,0.0003413,120]
[425772510,1781887719000,-971.0,0.00033961,30]
[425772522,1781887719000,-176.8067811,0.00034133,60]
[425772520,1781887719000,-170.98842831,0.00034033,30]
[425772523,1781887719000,-150.31,0.00034145,120]
[425772519,1781887719000,-163.41,0.00034,120]
[425772517,1781887719000,-151.0,0.00033962,30]
[425772516,1781887719000,-558.0,0.00033961,30]
[425772514,1781887719000,-174.0,0.00033961,30]
[425772513,1781887719000,-151.0,0.00033961,30]
[425772512,1781887719000,-171.0,0.00033961,30]
[425772511,1781887719000,-192.0,0.00033961,30]
[425772518,1781887719000,-159.0,0.00033964,30]
[425772539,1781887720000,-800.0,0.0003463,120]
[425772535,1781887720000,-800.0,0.0003452,120]
[425772540,1781887720000,-170.98842831,0.00034642,30]
[425772538,1781887720000,-800.0,0.00034575,120]
[425772536,1781887720000,-55903.71,0.00034544,60]
[425772537,1781887720000,-7932.58,0.00034544,60]
[425772534,1781887720000,-1000.0,0.00034499,30]
[425772549,1781887720000,-1062.3,0.000349,120]
[425772533,1781887720000,-800.0,0.00034465,120]
[425772531,1781887720000,-150.441806,0.00034415,120]
[425772530,1781887720000,-800.0,0.0003441,120]
[425772528,1781887720000,-215.14030586,0.00034356,120]
[425772529,1781887720000,-800.0,0.00034356,120]
[425772527,1781887720000,-170.98842831,0.00034338,30]
[425772542,1781887720000,-150.833245,0.00034755,120]
[425772532,1781887720000,-539.0,0.00034456,30]
[425772541,1781887720000,-649.34858925,0.00034684,120]
[425772552,1781887720000,-212.0,0.00034961,30]
[425772543,1781887720000,-1000.0,0.00034779,30]
[425772558,1781887720000,-171.0,0.00034961,30]
[425772557,1781887720000,-192.0,0.00034961,30]
[425772555,1781887720000,-688.0,0.00034961,30]
[425772554,1781887720000,-171.0,0.00034961,30]
[425772560,1781887720000,-174.0,0.00034961,30]
[425772553,1781887720000,-248.0,0.00034961,30]
[425772556,1781887720000,-971.0,0.00034961,30]
[425772551,1781887720000,-170.98842831,0.00034947,30]
[425772548,1781887720000,-256.12500001,0.0003479,120]
[425772559,1781887720000,-151.0,0.00034961,30]
[425772547,1781887720000,-252.945,0.0003479,120]
[425772545,1781887720000,-456072.0,0.0003478,30]
[425772546,1781887720000,-235.31453881,0.0003479,120]
[425772550,1781887720000,-1113.94,0.000349,60]
[425772544,1781887720000,-1000.0,0.00034779,30]
[425772572,1781887721000,-162.0,0.00035,120]
[425772576,1781887721000,-1918.17,0.00035192,120]
[425772574,1781887721000,-150.807804,0.00035068,120]
[425772577,1781887721000,-191.9,0.000352,30]
[425772575,1781887721000,-730.0,0.00035068,120]
[425772573,1781887721000,-1000.0,0.00035,30]
[425772571,1781887721000,-268.86302273,0.00035,120]
[425772561,1781887721000,-195.0,0.00034961,30]
[425772569,1781887721000,-1000.0,0.00034999,30]
[425772567,1781887721000,-1000.0,0.00034999,30]
[425772566,1781887721000,-1000.0,0.00034999,30]
[425772563,1781887721000,-151.0,0.00034962,30]
[425772565,1781887721000,-159.0,0.00034964,30]
[425772564,1781887721000,-477.0,0.00034964,30]
[425772579,1781887721000,-218.20408141,0.00035232,120]
[425772562,1781887721000,-558.0,0.00034961,30]
[425772568,1781887721000,-1000.0,0.00034999,30]
[425772578,1781887721000,-768.37499999,0.00035232,120]
[425772570,1781887721000,-647.06733905,0.00034999,30]
[425772581,1781887721000,-5000.0,0.0003526,30]
[425772580,1781887721000,-170.98842831,0.00035251,30]
[425772597,1781887721000,-500.0,0.00035616,30]
[425772598,1781887721000,-500.0,0.00035616,30]
[425772595,1781887721000,-500.0,0.00035616,30]
[425772594,1781887721000,-500.0,0.00035616,30]
[425772593,1781887721000,-545.1,0.00035616,30]
[425772591,1781887721000,-2877.0,0.00035598,34]
[425772592,1781887721000,-300.0,0.000356,120]
[425772596,1781887721000,-500.0,0.00035616,30]
[425772590,1781887721000,-170.98842831,0.00035556,30]
[425772588,1781887721000,-400.0,0.00035477,60]
[425772587,1781887721000,-100000.0,0.00035455,30]
[425772586,1781887721000,-100000.0,0.00035455,60]
[425772585,1781887721000,-100000.0,0.00035455,90]
[425772584,1781887721000,-80000.0,0.00035455,120]
[425772582,1781887721000,-150.782757,0.00035382,120]
[425772589,1781887721000,-152.0,0.00035538,120]
[425772583,1781887721000,-189.83,0.000354,30]
[425772607,1781887722000,-504.18876848,0.00035616,30]
[425772609,1781887722000,-500.0,0.00035616,30]
[425772610,1781887722000,-500.0,0.00035616,30]
[425772606,1781887722000,-500.0,0.00035616,30]
[425772604,1781887722000,-500.0,0.00035616,30]
[425772601,1781887722000,-500.0,0.00035616,30]
[425772603,1781887722000,-500.0,0.00035616,30]
[425772602,1781887722000,-500.0,0.00035616,30]
[425772599,1781887722000,-500.0,0.00035616,30]
[425772600,1781887722000,-500.0,0.00035616,30]
[425772608,1781887722000,-500.0,0.00035616,30]
[425772605,1781887722000,-500.0,0.00035616,30]
[425772611,1781887722000,-500.0,0.00035616,30]
[425772615,1781887722000,-326.25919791,0.00035616,30]
[425772613,1781887722000,-500.0,0.00035616,30]
[425772625,1781887722000,-500.0,0.00035616,30]
[425772623,1781887722000,-163.38783201,0.00035616,30]
[425772612,1781887722000,-500.0,0.00035616,30]
[425772621,1781887722000,-500.0,0.00035616,30]
[425772622,1781887722000,-500.0,0.00035616,30]
[425772624,1781887722000,-500.0,0.00035616,30]
[425772620,1781887722000,-392.49345858,0.00035616,30]
[425772616,1781887722000,-500.0,0.00035616,30]
[425772618,1781887722000,-500.0,0.00035616,30]
[425772617,1781887722000,-500.0,0.00035616,30]
[425772614,1781887722000,-500.0,0.00035616,30]
[425772619,1781887722000,-645.91821424,0.00035616,30]
[425772634,1781887723000,-500.0,0.00035616,30]
[425772638,1781887723000,-500.0,0.00035616,30]
[425772637,1781887723000,-500.0,0.00035616,30]
[425772639,1781887723000,-902.01,0.00035616,30]
[425772636,1781887723000,-500.0,0.00035616,30]
[425772635,1781887723000,-500.0,0.00035616,30]
[425772630,1781887723000,-500.0,0.00035616,30]
[425772631,1781887723000,-500.0,0.00035616,30]
[425772627,1781887723000,-500.0,0.00035616,30]
[425772629,1781887723000,-500.0,0.00035616,30]
[425772628,1781887723000,-500.0,0.00035616,30]
[425772626,1781887723000,-500.0,0.00035616,30]
[425772640,1781887723000,-500.0,0.00035616,30]
[425772633,1781887723000,-500.0,0.00035616,30]
[425772642,1781887723000,-500.0,0.00035616,30]
[425772632,1781887723000,-500.0,0.00035616,30]
[425772643,1781887723000,-500.0,0.00035616,30]
[425772656,1781887723000,-500.0,0.00035616,30]
[425772654,1781887723000,-577.1,0.00035616,30]
[425772655,1781887723000,-500.0,0.00035616,30]
[425772657,1781887723000,-500.0,0.00035616,30]
[425772651,1781887723000,-500.0,0.00035616,30]
[425772653,1781887723000,-625.28,0.00035616,30]
[425772658,1781887723000,-500.0,0.00035616,30]